bitfinex/quotes_SOLUSD_20250118
["timestamp","ask_amount","ask_price","bid_price","bid_amount"]
[1737175521152,4.363,229.2,229.11,34.4929341]
[1737175521354,34.4929341,229.21,229.13,34.4929341]
[1737175521534,38.8553341,229.23,229.13,34.4929341]
[1737175521935,38.8553341,229.23,229.09,24.365]
[1737175522130,34.4929341,229.25,229.15,34.4929341]
[1737175522354,38.8550341,229.25,229.15,34.4929341]
[1737175522868,38.8550341,229.25,229.15,38.8568341]
[1737175523155,34.4929341,229.23,229.15,38.8568341]
[1737175523327,0.063,229.26,229.19,34.4929341]
[1737175523665,0.063,229.26,229.21,34.4929341]
[1737175523969,0.063,229.26,229.19,34.4929341]
[1737175524828,0.063,229.26,229.2,4.363]
[1737175525053,0.063,229.26,229.21,34.4929341]
[1737175525358,0.063,229.26,229.2,4.363]
[1737175525527,38.9178341,229.26,229.17,34.4929341]
[1737175525732,34.5559341,229.26,229.17,34.4929341]
[1737175525930,0.063,229.26,229.19,34.4929341]
[1737175526855,0.063,229.25,229.19,34.4929341]
[1737175527031,0.063,229.25,229.2,4.363]
[1737175528253,0.063,229.25,229.23,34.4929341]
[1737175529333,0.063,229.26,229.25,20.0]
[1737175529553,34.5559341,229.38,229.25,54.4929341]
[1737175529732,34.5559341,229.38,229.31,34.4929341]
[1737175529937,0.063,229.38,229.37,34.4929341]
[1737175530341,0.0001,229.38,229.37,34.4929341]
[1737175530569,0.0001,229.38,229.32,0.65397134]
[1737175530754,0.0001,229.38,229.37,34.4929341]
[1737175531664,0.0001,229.38,229.37,38.8526341]
[1737175533148,0.063,229.49,229.4,33.1]
[1737175533347,0.0001,229.49,229.48,38.8505341]
[1737175533549,0.0001,229.49,229.48,39.50384367]
[1737175534958,0.0001,229.49,229.48,52.60384367]
[1737175535150,0.0001,229.49,229.48,39.50384367]
[1737175535353,23.560993,229.72,229.56,34.4929341]
[1737175535354,34.4929341,229.67,229.56,34.4929341]
[1737175535656,34.4929341,229.67,229.57,15.2458]
[1737175536049,34.4929341,229.67,229.58,35.14602944]
[1737175536251,34.4929341,229.63,229.58,0.65309534]
[1737175536457,34.4929341,229.63,229.57,4.3559]
[1737175536650,17.41179,229.71,229.53,0.65320767]
[1737175536651,34.4929341,229.59,229.53,0.65320767]
[1737175536852,34.4929341,229.59,229.5,35.14625069]
[1737175537367,34.4929341,229.57,229.48,34.4929341]
[1737175537563,34.4929341,229.55,229.46,34.4929341]
[1737175537772,10.9985,229.68,229.43,34.4929341]
[1737175537970,34.4929341,229.53,229.44,35.14655946]
[1737175538157,34.4929341,229.51,229.42,34.4929341]
[1737175538356,34.4929341,229.49,229.42,34.4929341]
[1737175538663,34.4929341,229.52,229.42,34.4929341]
[1737175538868,34.4929341,229.54,229.45,34.4929341]
[1737175539074,34.4929341,229.48,229.4,4.3591]
[1737175539277,34.4929341,229.41,229.37,0.03]
[1737175539488,34.4929341,229.38,229.37,0.03]
[1737175539670,34.4929341,229.38,229.2,2.79459294]
[1737175539671,12.6424,229.37,229.2,0.65386645]
[1737175539853,4.3587,229.43,229.13,6.33700183]
[1737175540177,0.65434104,229.42,229.14,0.65393994]
[1737175540376,0.65434104,229.42,229.17,33.1]
[1737175540572,4.3587,229.43,229.18,0.65405754]
[1737175540955,0.65434104,229.45,229.19,13.1]
[1737175540956,34.4929341,229.41,229.19,13.1]
[1737175541150,34.4929341,229.39,229.3,34.4929341]
[1737175541355,34.4929341,229.41,229.32,34.4929341]
[1737175541573,34.4929341,229.39,229.3,54.4929341]
[1737175541880,34.4929341,229.37,229.31,4.3608]
[1737175542060,34.4929341,229.43,229.34,34.4929341]
[1737175542974,34.4929341,229.47,229.38,34.4929341]
[1737175543673,34.4929341,229.47,229.39,4.3593]
[1737175544568,34.4929341,229.47,229.41,20.0]
[1737175544768,34.4929341,229.45,229.39,4.3593]
[1737175545080,34.4929341,229.55,229.43,34.4929341]
[1737175545290,34.4929341,229.53,229.43,34.4929341]
[1737175545465,34.4929341,229.51,229.43,34.4929341]
[1737175545786,34.4929341,229.48,229.41,4.3589]
[1737175546157,34.4929341,229.48,229.42,20.0]
[1737175546363,34.4929341,229.44,229.33,34.4929341]
[1737175546565,34.4929341,229.34,229.26,4.3618]
[1737175546776,34.4929341,229.34,229.1,12.734]
[1737175546777,34.4929341,229.28,229.12,4.3645]
[1737175546969,20.0,229.41,229.12,4.3645]
[1737175547169,0.65434104,229.4,229.13,0.65437882]
[1737175547586,4.3588,229.42,229.14,4.3641]
[1737175547786,0.65434104,229.41,229.15,0.65408267]
[1737175547992,34.4929341,229.29,229.2,34.4929341]
[1737175548383,34.4929341,229.31,229.22,34.4929341]
[1737175549096,34.4929341,229.31,229.23,4.3624]
[1737175549796,34.4929341,229.35,229.24,34.4929341]
[1737175550093,34.4929341,229.35,229.26,34.4929341]
[1737175550487,34.4929341,229.33,229.25,34.4929341]
[1737175550684,34.4929341,229.35,229.25,34.4929341]
[1737175550888,6.6733,229.24,228.91,12.52764253]
[1737175551094,34.4929341,228.95,228.9,74.63120034]
[1737175551393,20.0,229.13,228.9,76.67220499]
[1737175551685,20.0,229.13,228.9,74.63120034]
[1737175551686,0.65434104,229.12,228.9,74.63120034]
[1737175551893,12.9574,229.17,228.91,5.02353436]
[1737175552073,12.9574,229.17,228.91,15.94483436]
[1737175552279,34.4929341,229.13,229.02,34.4929341]
[1737175552481,34.4929341,229.15,229.04,34.4929341]
[1737175552793,34.4929341,229.19,229.11,20.0]
[1737175553092,34.4929341,229.21,229.12,4.3645]
[1737175553298,34.4929341,229.19,229.12,4.3645]
[1737175553870,34.4929341,229.19,229.1,20.0]
[1737175554295,34.4929341,229.19,229.09,34.4929341]
[1737175554596,34.4929341,229.19,229.1,4.3647]
[1737175554803,34.4929341,229.15,229.05,34.4929341]
[1737175555097,34.4929341,229.06,228.96,34.4929341]
[1737175555298,34.4929341,229.06,228.94,34.4929341]
[1737175555509,34.4929341,229.1,229.0,34.4929341]
[1737175555684,34.4929341,229.14,229.02,34.4929341]
[1737175555885,34.4929341,229.14,229.04,34.4929341]
[1737175556097,10.9062,229.23,229.06,34.4929341]
[1737175556098,34.4929341,229.16,229.06,34.4929341]
[1737175556408,34.4929341,229.18,229.08,34.4929341]
[1737175557314,34.4929341,229.18,229.08,38.8580341]
[1737175557880,34.4929341,229.16,229.08,4.3651]
[1737175558483,4.3616,229.27,229.1,34.4929341]
[1737175558721,30.40508,229.29,229.15,34.4929341]
[1737175559010,30.40508,229.29,229.21,34.4929341]
[1737175559192,34.4929341,229.24,229.15,34.4929341]
[1737175559714,34.4929341,229.24,229.13,34.4929341]
[1737175559891,34.4929341,229.17,229.07,34.4929341]
[1737175560305,15.91934104,229.28,229.1,4.3649]
[1737175560307,34.4929341,229.19,229.1,4.3649]
[1737175560628,34.4929341,229.11,228.97,0.65449241]
[1737175560913,34.4929341,229.09,228.98,34.4929341]
[1737175561324,34.4929341,229.11,229.02,34.4929341]
[1737175561520,34.4929341,229.03,228.89,4.3689]
[1737175561685,0.65434104,229.02,228.88,0.03]
[1737175561887,34.4929341,228.93,228.88,0.03]
[1737175562230,0.65434104,229.04,228.88,0.03]
[1737175562390,4.3662,229.03,228.88,0.03]
[1737175562714,0.65434104,229.02,228.88,0.03]
[1737175563018,4.3662,229.03,228.88,0.03]
[1737175563319,34.4929341,228.98,228.88,0.03]
[1737175563506,34.4929341,228.94,228.88,0.03]
[1737175564020,34.4929341,228.91,228.88,0.03]
[1737175565490,34.4929341,228.89,228.88,0.03]
[1737175565690,34.4929341,228.89,228.83,0.03]
[1737175565912,34.4929341,228.84,228.83,0.03]
[1737175566096,0.65434104,228.96,228.83,0.03]
[1737175566097,34.4929341,228.86,228.83,0.03]
[1737175566611,0.65434104,228.96,228.83,0.03]
[1737175566612,34.4929341,228.9,228.83,0.03]
[1737175566793,0.65434104,229.02,228.88,34.4929341]
[1737175566990,34.4929341,228.96,228.86,34.4929341]
[1737175567191,33.9929341,228.96,228.86,34.4929341]
[1737175567617,34.4929341,228.96,228.86,34.4929341]
[1737175567920,5.02124104,229.0,228.84,34.4929341]
[1737175567921,34.4929341,228.94,228.84,34.4929341]
[1737175568096,4.3669,229.0,228.86,34.4929341]
[1737175568097,34.4929341,228.96,228.86,34.4929341]
[1737175568297,34.4929341,228.98,228.88,34.4929341]
[1737175568533,34.4929341,228.96,228.86,34.4929341]
[1737175569314,34.4929341,228.94,228.84,38.8626341]
[1737175569708,34.4929341,228.94,228.84,34.4929341]
[1737175570219,34.4929341,228.94,228.83,4.4]
[1737175570422,34.4929341,229.04,228.83,0.03]
[1737175570423,34.4929341,228.92,228.83,0.03]
[1737175570726,34.4929341,228.9,228.83,0.03]
[1737175571500,34.4929341,228.86,228.83,0.03]
[1737175571694,34.4929341,228.84,228.83,0.03]
[1737175572108,34.4929341,228.84,228.8,0.03]
[1737175572109,35.14727514,228.84,228.8,0.03]
[1737175572316,34.4929341,228.81,228.8,0.03]
[1737175572624,38.8633341,228.81,228.8,0.03]
[1737175572806,4.3704,228.81,228.8,0.03]
[1737175573007,38.8633341,228.81,228.8,0.03]
[1737175574210,38.8630341,228.83,228.8,0.03]
[1737175574435,45.3693341,228.89,228.8,0.03]
[1737175574599,34.4929341,228.87,228.8,0.03]
[1737175574806,34.4929341,228.92,228.82,34.4929341]
[1737175575118,47.0395341,228.96,228.86,34.4929341]
[1737175575303,47.0395341,228.96,228.8,0.03]
[1737175575304,35.14727514,229.0,228.9,34.4929341]
[1737175575507,35.14727514,229.0,228.81,20.0]
[1737175575508,34.4929341,229.04,228.95,34.4929341]
[1737175576125,34.4929341,229.12,229.03,34.4929341]
[1737175576319,34.4929341,229.1,229.01,34.4929341]
[1737175576520,38.8583341,229.08,228.99,34.4929341]
[1737175576822,34.4929341,229.11,229.03,34.4929341]
[1737175577029,4.3646,229.12,229.03,34.4929341]
[1737175577240,47.0395341,229.15,229.07,34.4929341]
[1737175577404,47.0395341,229.15,228.96,0.65479049]
[1737175577405,47.0395341,229.15,229.05,34.4929341]
[1737175577606,47.0395341,229.15,229.07,34.4929341]
[1737175577827,51.4035341,229.15,229.05,34.4929341]
[1737175578507,34.4929341,229.13,229.05,34.4929341]
[1737175578730,34.4929341,229.13,229.03,34.4929341]
[1737175579632,16.9106,229.15,229.07,34.4929341]
[1737175579826,12.2381,229.24,229.13,34.4929341]
[1737175580026,16.6004,229.24,229.17,34.4929341]
[1737175580216,51.0933341,229.24,229.15,34.4929341]
[1737175580531,34.4929341,229.2,229.11,34.4929341]
[1737175580736,4.3631,229.19,229.11,34.4929341]
[1737175580936,34.4929341,229.12,228.95,4.3677]
[1737175581114,34.4929341,229.08,228.99,34.4929341]
[1737175581632,34.4929341,229.1,229.01,34.4929341]
[1737175582008,34.4929341,229.08,228.99,34.4929341]
[1737175582216,34.4929341,229.06,228.97,34.4929341]
[1737175582628,34.4929341,229.04,228.95,34.4929341]
[1737175583221,34.4929341,229.02,228.92,34.4929341]
[1737175583426,0.65434104,229.01,228.92,34.4929341]
[1737175584139,34.4929341,228.96,228.88,34.4929341]
[1737175584436,0.65434104,228.95,228.88,34.4929341]
[1737175584637,15.2911,228.89,228.8,0.03]
[1737175584838,34.4929341,228.81,228.8,0.03]
[1737175585044,34.0645,229.08,228.8,0.03]
[1737175585208,5.01974104,229.07,228.87,34.4929341]
[1737175585413,20.0,229.04,228.8,0.03]
[1737175585611,0.65434104,229.03,228.8,0.03]
[1737175585824,1.45178175,229.03,228.8,0.03]
[1737175586020,20.0,228.99,228.8,0.03]
[1737175586342,0.65434104,228.98,228.8,0.03]
[1737175586649,34.4929341,228.89,228.8,0.03]
[1737175586814,34.4929341,228.85,228.8,0.03]
[1737175587020,34.4929341,228.83,228.8,0.03]
[1737175587325,34.4929341,228.85,228.8,0.03]
[1737175587727,12.2381,228.88,228.8,0.03]
[1737175588125,34.4929341,228.87,228.8,0.03]
[1737175588516,35.14727514,228.87,228.8,0.03]
[1737175588740,4.3694,228.86,228.8,0.03]
[1737175589249,0.65434104,228.85,228.7,4.3725]
[1737175589538,0.65434104,228.85,228.59,0.03]
[1737175589539,34.4929341,228.71,228.59,0.03]
[1737175589730,34.4929341,228.66,228.59,0.03]
[1737175589918,34.4929341,228.66,228.56,34.4929341]
[1737175590319,34.4929341,228.62,228.52,34.5229341]
[1737175590541,34.4929341,228.6,228.52,34.5229341]
[1737175590747,34.4929341,228.6,228.52,0.03]
[1737175590928,34.4929341,228.56,228.52,0.03]
[1737175591430,34.4929341,228.53,228.46,0.063]
[1737175591739,34.4929341,228.48,228.46,0.063]
[1737175591942,34.4929341,228.54,228.46,0.063]
[1737175592152,17.34310307,228.6,228.47,4.4398]
[1737175592153,38.8675341,228.6,228.47,4.4398]
[1737175592329,34.4929341,228.7,228.61,20.0]
[1737175592645,5.6309,228.78,228.68,34.4929341]
[1737175592822,5.6309,228.9,228.69,0.65576969]
[1737175593018,4.3692,228.88,228.63,4.3738]
[1737175593213,0.65434104,228.87,228.63,4.3738]
[1737175593646,0.65434104,228.87,228.58,10.937]
[1737175593647,20.0,228.81,228.52,4.3759]
[1737175593838,34.4929341,228.68,228.58,34.4929341]
[1737175594243,34.4929341,228.66,228.56,34.4929341]
[1737175594543,34.4929341,228.64,228.54,34.4929341]
[1737175594738,0.65434104,228.75,228.56,34.4929341]
[1737175594739,34.4929341,228.66,228.56,34.4929341]
[1737175594919,4.3734,228.65,228.56,34.4929341]
[1737175595130,34.4929341,228.66,228.51,24.376]
[1737175595131,4.3727,228.69,228.58,34.4929341]
[1737175595332,5.02704104,228.69,228.6,34.4929341]
[1737175595644,4.3727,228.69,228.6,34.4929341]
[1737175595848,4.3713,228.76,228.67,34.4929341]
[1737175596146,34.4929341,228.79,228.69,34.4929341]
[1737175596652,34.4929341,228.79,228.62,34.4929341]
[1737175596653,34.4929341,228.77,228.67,34.4929341]
[1737175597027,34.4929341,228.75,228.65,34.4929341]
[1737175597428,34.4929341,228.75,228.53,0.65586627]
[1737175597429,34.4929341,228.71,228.61,34.4929341]
[1737175597638,34.4929341,228.69,228.59,34.4929341]
[1737175597828,34.4929341,228.69,228.5,4.3763]
[1737175598032,34.4929341,228.69,228.59,34.4929341]
[1737175598263,34.4929341,228.78,228.68,34.4929341]
[1737175598556,34.4929341,228.72,228.62,34.4929341]
[1737175599232,34.4929341,228.72,228.51,0.65606636]
[1737175599233,4.372,228.73,228.64,34.4929341]
[1737175600258,34.4929341,228.7,228.6,34.4929341]
[1737175600553,34.4929341,228.72,228.62,34.4929341]
[1737175601151,21.8532,228.8,228.58,34.4929341]
[1737175601152,34.4929341,228.68,228.58,34.4929341]
[1737175601353,4.3724,228.71,228.62,34.4929341]
[1737175601651,4.3692,228.87,228.72,20.0]
[1737175601950,34.4929341,228.91,228.72,20.65558027]
[1737175602156,15.2885,228.93,228.67,0.65553864]
[1737175602358,0.65434104,228.92,228.69,20.0]
[1737175602550,15.2885,228.93,228.7,0.65546435]
[1737175602947,15.2885,228.93,228.73,20.0]
[1737175603151,15.2885,228.93,228.82,34.4929341]
[1737175603152,34.4929341,228.91,228.82,34.4929341]
[1737175603353,34.4929341,228.86,228.77,34.4929341]
[1737175603747,4.3682,228.93,228.83,34.4929341]
[1737175604051,34.4929341,228.87,228.79,34.4929341]
[1737175604256,34.4929341,228.87,228.77,34.4929341]
[1737175604648,34.4929341,228.83,228.73,34.4929341]
[1737175604853,34.4929341,228.75,228.65,34.4929341]
[1737175605054,0.65434104,228.74,228.69,34.4929341]
[1737175605255,4.3691,228.88,228.73,34.4929341]
[1737175605446,0.65434104,228.87,228.66,20.0]
[1737175606459,0.65434104,228.87,228.63,5.02951339]
[1737175606460,34.4929341,228.82,228.72,34.4929341]
[1737175606663,0.65434104,228.81,228.72,34.4929341]
[1737175606860,34.4929341,228.8,228.7,34.4929341]
[1737175607059,0.65434104,228.81,228.49,43.24440774]
[1737175607060,34.4929341,228.78,228.68,34.4929341]
[1737175607253,0.65434104,228.77,228.68,34.4929341]
[1737175607561,34.4929341,228.78,228.68,34.4929341]
[1737175607755,0.65434104,228.85,228.77,34.4929341]
[1737175607960,4.3694,228.86,228.77,34.4929341]
[1737175608462,4.3698,228.84,228.75,34.4929341]
[1737175608653,34.4929341,228.89,228.77,34.4929341]
[1737175608851,15.2898,228.91,228.75,34.4929341]
[1737175608852,34.4929341,228.85,228.75,34.4929341]
[1737175609176,0.65434104,228.84,228.77,34.4929341]
[1737175609354,34.4929341,228.89,228.79,34.4929341]
[1737175609549,34.4929341,228.89,228.64,15.96352157]
[1737175609550,0.65434104,229.0,228.87,34.4929341]
[1737175609759,9.9976,229.01,228.92,34.4929341]
[1737175609964,5.6309,229.01,228.92,34.4929341]
[1737175610164,6.28524104,229.01,228.92,34.4929341]
[1737175610353,17.463806,229.07,228.92,34.4929341]
[1737175610354,0.65434104,229.06,228.92,34.4929341]
[1737175610545,4.4289,229.05,228.93,4.3681]
[1737175610748,0.063,229.05,228.93,4.3681]
[1737175610945,0.063,229.05,228.96,20.0]
[1737175611152,0.063,229.05,229.04,34.4929341]
[1737175613062,4.4288,229.05,229.02,34.4929341]
[1737175613372,4.4288,229.05,229.0,34.4929341]
[1737175613774,0.063,229.05,229.03,34.4929341]
[1737175618457,0.063,229.05,228.91,0.65501543]
[1737175618458,47.3905341,229.04,228.83,47.77495026]
[1737175618779,4.3664,229.02,228.94,34.4929341]
[1737175619079,5.02074104,229.02,228.94,34.4929341]
[1737175619775,4.3661,229.04,228.98,34.4929341]
[1737175619972,4.4289,229.05,229.0,34.4929341]
[1737175620557,4.4289,229.05,228.83,47.12]
[1737175620558,4.4289,229.05,228.96,34.4929341]
[1737175620759,0.65434104,229.04,228.94,34.4929341]
[1737175621051,0.65434104,229.04,228.83,47.12]
[1737175621352,0.65434104,229.04,228.97,34.4929341]
[1737175621560,38.9218341,229.05,228.97,34.4929341]
[1737175621763,0.063,229.05,229.04,34.4929341]
[1737175622168,0.063,229.05,228.98,34.4929341]
[1737175622372,0.063,229.05,229.02,34.4929341]
[1737175622877,0.063,229.05,228.9,35.14793319]
[1737175622878,0.063,229.05,229.04,34.4929341]
[1737175623965,35.14727514,229.2,229.07,20.0]
[1737175624279,35.14727514,229.2,229.11,34.4929341]
[1737175624462,0.65434104,229.25,229.17,34.4929341]
[1737175624857,0.063,229.28,229.21,34.4929341]
[1737175625058,4.4245,229.28,229.21,34.4929341]
[1737175625257,0.063,229.28,229.19,34.4929341]
[1737175625457,0.063,229.28,229.21,34.4929341]
[1737175625862,0.063,229.28,229.27,34.4929341]
[1737175626268,0.063,229.28,229.25,34.4929341]
[1737175626464,0.063,229.28,229.27,34.4929341]
[1737175629973,4.4245,229.28,229.21,34.4929341]
[1737175630175,0.063,229.28,229.21,34.4929341]
[1737175630386,4.4246,229.28,229.21,34.4929341]
[1737175631176,4.4246,229.28,229.14,47.12]
[1737175631177,38.9175341,229.28,229.19,34.4929341]
[1737175631380,34.5559341,229.28,229.19,34.4929341]
[1737175631572,0.063,229.28,229.21,34.4929341]
[1737175631957,0.063,229.28,229.24,34.4929341]
[1737175632175,34.5559341,229.28,229.19,34.4929341]
[1737175632363,34.4929341,229.26,229.05,0.65409309]
[1737175632572,34.4929341,229.26,229.17,34.4929341]
[1737175632954,38.8547341,229.26,229.17,34.4929341]
[1737175633157,0.063,229.28,229.21,34.4929341]
[1737175633396,0.063,229.28,229.08,5.47589514]
[1737175633397,34.4929341,229.25,229.15,34.4929341]
[1737175633761,34.4929341,229.23,229.15,34.4929341]
[1737175634371,34.4929341,229.18,229.08,35.14739187]
[1737175634569,34.4929341,229.16,229.06,34.4929341]
[1737175634968,34.4929341,229.2,229.12,34.4929341]
[1737175635262,34.4929341,229.22,229.12,34.4929341]
[1737175635574,34.4929341,229.26,229.16,34.4929341]
[1737175636077,0.063,229.28,229.2,34.4929341]
[1737175636462,0.063,229.28,229.23,20.0]
[1737175636862,0.063,229.28,229.25,20.0]
[1737175637467,0.063,229.28,229.27,34.4929341]
[1737175637787,0.063,229.28,229.25,34.4929341]
[1737175637989,0.063,229.28,229.18,34.4929341]
[1737175637990,0.063,229.28,229.21,34.4929341]
[1737175638685,0.063,229.28,229.26,34.4929341]
[1737175638869,0.063,229.28,229.27,0.65387473]
[1737175639475,0.063,229.37,229.27,0.65387473]
[1737175639678,0.063,229.37,229.36,34.4929341]
[1737175639877,0.063,229.37,229.36,35.14655427]
[1737175640081,0.063,229.43,229.42,34.4929341]
[1737175640867,0.063,229.53,229.42,34.4929341]
[1737175641072,0.063,229.53,229.52,34.4929341]
[1737175641273,0.063,229.53,229.43,0.65348868]
[1737175641274,0.063,229.53,229.5,34.4929341]
[1737175641785,0.063,229.53,229.52,20.0]
[1737175641983,0.063,229.53,229.52,54.4929341]
[1737175642789,0.063,229.53,229.52,34.4929341]
[1737175643103,0.063,229.53,229.48,34.4929341]
[1737175643279,0.063,229.53,229.52,34.4929341]
[1737175643480,0.063,229.53,229.5,34.4929341]
[1737175643898,0.063,229.53,229.52,20.0]
[1737175644077,0.063,229.53,229.52,34.4929341]
[1737175644277,0.063,229.53,229.39,0.65330747]
[1737175644495,0.063,229.53,229.22,150.7063]
[1737175644496,0.063,229.53,229.52,34.4929341]
[1737175644804,56.2561841,229.74,229.55,20.0]
[1737175645014,17.41045,229.74,229.66,34.4929341]
[1737175645212,34.5559341,229.76,229.68,34.4929341]
[1737175645585,0.063,229.76,229.68,34.4929341]
[1737175646100,0.063,229.76,229.69,20.0]
[1737175646993,34.4929341,229.75,229.66,34.4929341]
[1737175647311,34.4929341,229.71,229.62,34.4929341]
[1737175647876,0.063,229.76,229.7,34.4929341]
[1737175648574,0.063,229.76,229.75,20.0]
[1737175649585,0.063,229.76,229.74,34.4929341]
[1737175650899,0.063,229.76,229.64,0.65278663]
[1737175651105,0.063,229.76,229.7,34.4929341]
[1737175651286,0.063,229.76,229.72,34.4929341]
[1737175651483,0.063,229.76,229.7,34.4929341]
[1737175651687,0.063,229.76,229.72,34.4929341]
[1737175652082,0.063,229.76,229.74,34.4929341]
[1737175655817,51.6203341,229.76,229.63,34.4929341]
[1737175656012,34.4929341,229.73,229.63,34.4929341]
[1737175656317,34.4929341,229.73,229.56,1.89696532]
[1737175656318,0.063,229.76,229.75,20.0]
[1737175656895,0.063,229.76,229.67,20.0]
[1737175657115,0.063,229.76,229.68,0.65268801]
[1737175657312,0.063,229.76,229.68,6.12858315]
[1737175657518,18.64527629,229.89,229.78,20.0]
[1737175657729,18.64527629,229.89,229.82,34.4929341]
[1737175657937,18.64527629,229.89,229.88,34.4929341]
[1737175658100,18.64527629,229.89,229.88,68.9858682]
[1737175658418,78.19868,229.94,229.91,20.0]
[1737175658598,78.19868,229.94,229.93,34.4929341]
[1737175659037,77.55968,229.94,229.93,34.4929341]
[1737175659210,48.9727341,229.94,229.86,5.47589514]
[1737175659534,48.9727341,229.94,229.93,34.4929341]
[1737175659901,48.9727341,229.94,229.93,40.47438479]
[1737175660097,0.4709,229.98,229.93,40.47438479]
[1737175660300,0.4709,229.98,229.97,34.4929341]
[1737175660833,0.4709,229.98,229.97,40.47438479]
[1737175661383,0.4709,229.98,229.97,34.4929341]
[1737175661513,0.4709,229.98,229.85,0.6520737]
[1737175661514,0.03,229.89,229.85,0.6520737]
[1737175661827,72.71859496,230.0,229.88,34.4929341]
[1737175662031,72.71859496,230.0,229.89,0.65212199]
[1737175662332,72.71859496,230.0,229.87,0.65221319]
[1737175662534,72.71859496,230.0,229.91,34.4929341]
[1737175662735,34.4929341,229.97,229.87,34.4929341]
[1737175662904,34.4929341,229.92,229.81,34.4929341]
[1737175663098,72.71859496,230.0,229.91,34.4929341]
[1737175663304,77.06649496,230.0,229.82,5.98145069]
[1737175663503,77.06649496,230.0,229.83,0.65228989]
[1737175663504,72.71859496,230.0,229.83,0.65228989]
[1737175663720,72.71859496,230.0,229.84,5.98145069]
[1737175664032,72.71859496,230.0,229.87,20.0]
[1737175664210,72.71859496,230.0,229.88,0.65215119]
[1737175664411,72.71859496,230.0,229.91,34.4929341]
[1737175664726,72.71859496,230.0,229.94,20.0]
[1737175665147,72.71859496,230.0,229.91,34.4929341]
[1737175665312,34.4929341,229.92,229.76,34.4929341]
[1737175665519,34.4929341,229.85,229.76,34.4929341]
[1737175665728,34.4929341,229.85,229.74,34.4929341]
[1737175665934,34.4929341,229.83,229.73,34.4929341]
[1737175666524,34.4929341,229.78,229.69,34.4929341]
[1737175666730,34.4929341,229.74,229.64,34.4929341]
[1737175666930,34.4929341,229.76,229.66,34.4929341]
[1737175667638,34.4929341,229.74,229.64,40.47438479]
[1737175668334,34.4929341,229.72,229.64,5.98145069]
[1737175668511,34.4929341,229.66,229.6,0.063]
[1737175668710,34.4929341,229.64,229.6,0.063]
[1737175669333,34.4929341,229.61,229.6,0.0001]
[1737175669521,34.4929341,229.61,229.47,34.4929341]
[1737175669850,34.4929341,229.58,229.48,34.4929341]
[1737175670027,34.4929341,229.52,229.4,34.4929341]
[1737175670233,34.4929341,229.52,229.42,34.4929341]
[1737175670439,34.4929341,229.52,229.45,20.0]
[1737175670622,34.4929341,229.54,229.44,34.4929341]
[1737175671032,34.4929341,229.52,229.42,34.4929341]
[1737175671246,34.4929341,229.52,229.37,0.71665832]
[1737175671541,34.4929341,229.52,229.42,34.4929341]
[1737175672148,0.65434104,229.59,229.49,34.4929341]
[1737175672149,34.4929341,229.59,229.49,34.4929341]
[1737175672448,34.4929341,229.57,229.52,20.0]
[1737175672626,34.4929341,229.59,229.52,20.0]
[1737175672943,34.4929341,229.53,229.41,34.4929341]
[1737175673252,34.4929341,229.42,229.37,0.063]
[1737175673451,34.4929341,229.39,229.37,0.063]
[1737175673824,38.8524341,229.39,229.37,0.063]
[1737175674028,0.65434104,229.38,229.32,17.41734]
[1737175674217,0.65434104,229.38,229.11,34.4929341]
[1737175674419,34.4929341,229.17,229.1,0.71747003]
[1737175674619,34.4929341,229.13,229.1,0.063]
[1737175674820,0.65434104,229.12,229.0,0.03]
[1737175675020,20.0,229.1,229.0,0.03]
[1737175675256,20.0,229.1,228.87,6.27971905]
[1737175675257,20.0,229.03,228.87,6.27971905]
[1737175675419,34.4929341,228.9,228.87,6.27971905]
[1737175675747,34.4929341,228.91,228.87,6.27971905]
[1737175675955,34.4929341,228.89,228.87,0.063]
[1737175676156,5.02054104,229.03,228.87,0.063]
[1737175676334,34.4929341,228.89,228.87,0.063]
[1737175676648,34.4929341,228.92,228.87,0.063]
[1737175677137,34.4929341,228.9,228.87,0.063]
[1737175677742,34.4929341,228.88,228.87,0.063]
[1737175678336,38.8620341,228.88,228.87,0.063]
[1737175678653,39.51637514,228.88,228.77,0.03]
[1737175678848,34.4929341,228.78,228.77,0.03]
[1737175679029,34.4929341,228.8,228.77,0.03]
[1737175679226,34.4929341,228.88,228.78,34.4929341]